bitfinex/quotes_BTCUSD_20250825
["timestamp","ask_amount","ask_price","bid_price","bid_amount"]
[1756148248842,0.21092838,112700.0,112690.0,0.33312803]
[1756148252490,0.0334661,112700.0,112690.0,0.33312803]
[1756148252731,0.02497959,112700.0,112690.0,1.301798]
[1756148252974,0.04049724,112710.0,112700.0,0.17746228]
[1756148253183,0.06596679,112710.0,112700.0,0.17963228]
[1756148253429,0.06596679,112710.0,112700.0,0.18273228]
[1756148253877,0.05207393,112710.0,112700.0,0.18273228]
[1756148254429,0.23051497,112710.0,112700.0,0.18273228]
[1756148254669,0.23051497,112710.0,112700.0,0.33309228]
[1756148254670,0.22218506,112710.0,112700.0,0.33309228]
[1756148255970,0.23607588,112710.0,112700.0,0.33309228]
[1756148257117,0.05862934,112710.0,112700.0,0.33309228]
[1756148257367,0.21942154,112710.0,112700.0,0.33309228]
[1756148258998,0.21942154,112710.0,112700.0,0.18273228]
[1756148259421,0.21942154,112710.0,112700.0,0.33301228]
[1756148259618,0.21942154,112710.0,112700.0,0.18273228]
[1756148260026,0.21942154,112710.0,112700.0,0.33301228]
[1756148261372,0.21942154,112710.0,112700.0,0.18273228]
[1756148261592,0.21942154,112710.0,112700.0,0.17746228]
[1756148261782,0.21942154,112710.0,112700.0,0.32774228]
[1756148262121,0.21942154,112710.0,112700.0,0.18056228]
[1756148262337,0.20553072,112710.0,112700.0,0.33301228]
[1756148265556,0.21942152,112710.0,112700.0,0.33301228]
[1756148265791,0.20553072,112710.0,112700.0,0.33301228]
[1756148269734,0.20553072,112710.0,112700.0,0.15555]
[1756148269947,0.20553072,112710.0,112700.0,0.33301228]
[1756148271526,0.21942156,112710.0,112700.0,0.33301228]
[1756148272109,0.21942156,112710.0,112700.0,0.15555]
[1756148272332,0.20553072,112710.0,112700.0,0.15555]
[1756148272967,0.20553072,112710.0,112700.0,0.33301228]
[1756148274584,0.20553072,112710.0,112700.0,0.15555]
[1756148274816,1.06986692,112710.0,112700.0,0.33301228]
[1756148275902,1.08375801,112710.0,112700.0,0.33301228]
[1756148277531,1.08375801,112710.0,112700.0,0.15555]
[1756148277771,1.08375801,112710.0,112690.0,0.06828]
[1756148277943,1.04179848,112700.0,112690.0,0.15016]
[1756148278191,1.04179848,112700.0,112690.0,0.15316]
[1756148278398,1.04179848,112700.0,112690.0,0.15532]
[1756148278849,0.17746228,112700.0,112690.0,0.33279803]
[1756148281051,1.11831733,112710.0,112690.0,0.33279803]
[1756148281266,1.12664447,112710.0,112690.0,0.32979803]
[1756148281481,1.14330265,112710.0,112700.0,0.003]
[1756148281728,1.14330265,112710.0,112700.0,0.00516]
[1756148281939,1.11661565,112710.0,112700.0,0.00516]
[1756148282381,0.17746228,112700.0,112690.0,0.33063803]
[1756148282513,0.17746228,112700.0,112690.0,0.33279803]
[1756148283121,0.17746228,112700.0,112690.0,0.00516]
[1756148283333,1.04179848,112700.0,112690.0,0.15528]
[1756148283596,0.17747803,112690.0,112680.0,0.18936101]
[1756148283846,0.17747803,112690.0,112680.0,0.42852576]
[1756148284809,0.17747803,112690.0,112680.0,0.27840576]
[1756148285026,1.04181423,112690.0,112680.0,0.004]
[1756148285253,1.04181423,112690.0,112680.0,0.001]
[1756148285497,1.5120186,112690.0,112680.0,0.15112]
[1756148285710,1.49537388,112690.0,112680.0,0.002]
[1756148285938,7.17205832,112690.0,112680.0,0.002]
[1756148286171,7.17829874,112690.0,112680.0,0.002]
[1756148286413,7.16997691,112690.0,112680.0,0.001]
[1756148286626,0.17750954,112670.0,112650.0,0.07128]
[1756148286841,0.17750954,112670.0,112660.0,0.15012]
[1756148287061,1.04184574,112670.0,112660.0,0.15012]
[1756148287539,1.05574155,112670.0,112660.0,0.15012]
[1756148288658,0.17752529,112660.0,112650.0,0.2214]
[1756148288893,1.04186149,112660.0,112650.0,0.21844798]
[1756148289120,1.04186149,112660.0,112650.0,0.15016798]
[1756148290779,1.38186149,112660.0,112650.0,0.15016798]
[1756148291236,1.38186149,112660.0,112650.0,0.15116798]
[1756148291667,1.38186149,112660.0,112650.0,0.00104798]
[1756148292062,1.53194149,112660.0,112650.0,0.00104798]
[1756148292896,1.60024992,112660.0,112650.0,0.00104798]
[1756148293101,1.53194149,112660.0,112650.0,0.00104798]
[1756148293317,1.54850123,112660.0,112650.0,0.00104798]
[1756148293733,6.42275323,112660.0,112650.0,0.00104798]
[1756148294559,6.42275323,112660.0,112650.0,4.798e-05]
[1756148295182,6.45045423,112660.0,112650.0,4.798e-05]
[1756148295441,6.52076414,112660.0,112650.0,4.798e-05]
[1756148295656,6.38722967,112660.0,112650.0,4.798e-05]
[1756148295873,6.35982438,112660.0,112650.0,4.798e-05]
[1756148296340,6.36809491,112660.0,112650.0,4.798e-05]
[1756148297711,6.28102435,112660.0,112650.0,4.798e-05]
[1756148298072,6.28122526,112660.0,112650.0,4.798e-05]
[1756148298272,6.28118526,112660.0,112650.0,4.798e-05]
[1756148298785,6.13110134,112660.0,112650.0,4.798e-05]
[1756148299004,6.28118134,112660.0,112650.0,4.798e-05]
[1756148299849,6.3526562,112660.0,112650.0,4.798e-05]
[1756148300062,5.41684514,112660.0,112650.0,4.798e-05]
[1756148300309,6.28118134,112660.0,112650.0,4.798e-05]
[1756148301829,5.94118134,112660.0,112650.0,4.798e-05]
[1756148302529,5.79110134,112660.0,112650.0,4.798e-05]
[1756148302762,5.94118134,112660.0,112650.0,4.798e-05]
[1756148305108,5.93290745,112660.0,112650.0,4.798e-05]
[1756148305318,5.94117657,112660.0,112650.0,4.798e-05]
[1756148305812,6.28117657,112660.0,112650.0,4.798e-05]
[1756148306873,6.28113657,112660.0,112650.0,4.798e-05]
[1756148310295,6.28096744,112660.0,112650.0,4.798e-05]
[1756148311533,6.28101486,112660.0,112650.0,4.798e-05]
[1756148311717,6.28101486,112660.0,112650.0,0.00510798]
[1756148312546,4.92663866,112660.0,112650.0,0.00510798]
[1756148312758,0.54259579,112660.0,112650.0,0.00510798]
[1756148314467,1.40693199,112660.0,112650.0,0.00510798]
[1756148314676,1.39870025,112660.0,112650.0,0.00510798]
[1756148314880,1.40701197,112660.0,112650.0,0.00510798]
[1756148315779,1.407019,112660.0,112650.0,0.00510798]
[1756148316928,1.407019,112660.0,112650.0,0.00510798]
[1756148318319,1.41326327,112660.0,112650.0,0.00510798]
[1756148318725,0.54892707,112660.0,112650.0,0.00510798]
[1756148318960,1.41326327,112660.0,112650.0,0.00510798]
[1756148320205,1.41326327,112660.0,112650.0,0.00297798]
[1756148321855,1.41326327,112660.0,112650.0,0.00510798]
[1756148322293,1.41326327,112660.0,112650.0,4.798e-05]
[1756148323794,1.26322327,112660.0,112650.0,0.00510798]
[1756148323933,1.41318327,112660.0,112650.0,0.00510798]
[1756148324370,1.39865189,112660.0,112650.0,0.00510798]
[1756148324582,1.41322472,112660.0,112650.0,0.00510798]
[1756148325847,1.59075001,112660.0,112650.0,0.00510798]
[1756148327877,1.59074831,112660.0,112650.0,0.00510798]
[1756148330902,1.59074831,112660.0,112650.0,0.00297798]
[1756148334201,1.57617593,112660.0,112650.0,0.00297798]
[1756148334405,1.59075569,112660.0,112650.0,0.00297798]
[1756148334816,1.57618011,112660.0,112650.0,0.00297798]
[1756148335026,0.72641991,112660.0,112650.0,0.00510798]
[1756148335234,1.59075678,112660.0,112650.0,0.00510798]
[1756148335482,1.58450992,112660.0,112650.0,0.00510798]
[1756148336081,0.57021372,112660.0,112650.0,0.00510798]
[1756148336285,1.58446992,112660.0,112650.0,0.00510798]
[1756148337364,1.69046034,112660.0,112650.0,0.00510798]
[1756148337572,1.69046375,112660.0,112650.0,0.00510798]
[1756148340192,1.54054375,112660.0,112650.0,0.00510798]
[1756148340414,0.57021713,112660.0,112650.0,0.00510798]
[1756148340697,1.66372275,112660.0,112650.0,0.18264903]
[1756148341400,1.66372275,112660.0,112650.0,0.00510798]
[1756148341646,1.51384275,112660.0,112650.0,0.00510798]
[1756148341902,0.69339613,112660.0,112650.0,0.18264903]
[1756148342603,0.69339613,112660.0,112650.0,1.15297565]
[1756148342815,0.35766968,112660.0,112650.0,1.15297565]
[1756148343036,0.001,112660.0,112650.0,1.15297565]
[1756148343457,0.001,112660.0,112650.0,0.18264903]
[1756148343910,0.53141967,112670.0,112660.0,0.17752529]
[1756148344110,0.55641373,112670.0,112660.0,0.17752529]
[1756148344323,0.21641373,112670.0,112660.0,0.18271529]
[1756148344573,0.20808238,112670.0,112660.0,0.18271529]
[1756148344794,0.54808238,112670.0,112660.0,0.18271529]
[1756148345021,0.69792238,112670.0,112660.0,0.18271529]
[1756148345238,0.69892238,112670.0,112660.0,0.18271529]
[1756148345880,0.69892238,112670.0,112660.0,0.00519]
[1756148346095,0.17752529,112660.0,112650.0,4.798e-05]
[1756148346310,1.03975957,112660.0,112650.0,4.798e-05]
[1756148346976,0.32736529,112660.0,112650.0,0.18277903]
[1756148347187,0.55811767,112670.0,112650.0,1.04501331]
[1756148347403,0.39724258,112670.0,112660.0,0.17752529]
[1756148347611,0.39724258,112670.0,112660.0,0.18271529]
[1756148347820,0.35389581,112670.0,112660.0,1.04494957]
[1756148348042,0.35389581,112670.0,112660.0,0.18271529]
[1756148348250,0.01389581,112670.0,112660.0,0.18271529]
[1756148348457,0.01489581,112670.0,112660.0,0.33255529]
[1756148348659,0.01389581,112670.0,112660.0,0.33255529]
[1756148349050,0.01489581,112670.0,112660.0,1.21223859]
[1756148349539,0.01489581,112670.0,112660.0,1.06239859]
[1756148349720,0.01489581,112670.0,112660.0,0.34996431]
[1756148350350,0.01389581,112670.0,112660.0,0.34996431]
[1756148350891,0.01389581,112670.0,112660.0,0.35096431]
[1756148351526,0.19140535,112670.0,112660.0,0.35096431]
[1756148351726,0.19140535,112670.0,112660.0,0.02363902]
[1756148351936,0.19140535,112670.0,112660.0,0.35096431]
[1756148354233,0.01389581,112670.0,112660.0,0.35096431]
[1756148358381,0.01389581,112670.0,112660.0,0.20116431]
[1756148358569,0.01389581,112670.0,112660.0,0.35092431]
[1756148359679,0.01389581,112670.0,112660.0,1.21315859]
[1756148360982,0.01389581,112670.0,112660.0,0.35092431]
[1756148365040,0.01389581,112670.0,112660.0,0.61962431]
[1756148366330,0.01389581,112670.0,112660.0,0.46986431]
[1756148366545,0.01389581,112670.0,112660.0,0.61958431]
[1756148366953,0.19140535,112670.0,112660.0,0.61958431]
[1756148367160,0.19140535,112670.0,112660.0,0.46986431]
[1756148367582,0.19140535,112670.0,112660.0,0.61958431]
[1756148367787,0.19140535,112670.0,112660.0,0.27489]
[1756148367995,1.05363963,112670.0,112660.0,0.2697]
[1756148368214,1.05363963,112670.0,112660.0,0.41942]
[1756148369081,1.07027807,112670.0,112660.0,0.41942]
[1756148369339,0.20804379,112670.0,112660.0,0.60208529]
[1756148369797,0.19140535,112670.0,112660.0,0.60208529]
[1756148371005,0.19140535,112670.0,112660.0,0.33338529]
[1756148372198,0.20806036,112670.0,112660.0,0.33338529]
[1756148372601,0.01389581,112670.0,112660.0,1.19561957]
[1756148372801,0.19140535,112670.0,112660.0,1.19561957]
[1756148373054,0.01389581,112670.0,112660.0,0.33338529]
[1756148373704,0.19140535,112670.0,112660.0,0.33338529]
[1756148373920,0.19140535,112670.0,112660.0,0.00614]
[1756148374136,0.19140535,112670.0,112660.0,0.15068]
[1756148374340,0.20806328,112670.0,112660.0,0.00403]
[1756148374774,0.20806328,112670.0,112660.0,0.15371]
[1756148374920,0.20806328,112670.0,112660.0,0.00403]
[1756148375120,0.20806328,112670.0,112660.0,0.15068]
[1756148375362,0.17888992,112670.0,112660.0,0.15068]
[1756148376017,0.17888992,112670.0,112660.0,0.15371]
[1756148378239,1.0411242,112670.0,112660.0,0.15064]
[1756148378448,0.17888992,112670.0,112660.0,0.15064]
[1756148378864,0.19278605,112670.0,112660.0,0.15064]
[1756148379507,0.20111716,112670.0,112660.0,0.15064]
[1756148379950,0.20111716,112670.0,112660.0,0.001]
[1756148380163,1.06335144,112670.0,112660.0,0.15064]
[1756148380612,1.55299144,112670.0,112660.0,0.001]
[1756148381509,1.54466033,112670.0,112660.0,0.001]
[1756148381727,1.55160812,112670.0,112660.0,0.001]
[1756148381949,1.55260812,112670.0,112660.0,0.001]
[1756148382070,0.17752529,112660.0,112650.0,0.15271798]
[1756148382738,0.17752529,112660.0,112650.0,0.15482798]
[1756148382951,0.17752529,112660.0,112650.0,0.33236903]
[1756148384001,0.17752529,112660.0,112650.0,0.33336903]
[1756148384219,0.17752529,112660.0,112650.0,0.15582798]
[1756148386802,0.17752529,112660.0,112650.0,0.33336903]
[1756148387319,0.19417055,112660.0,112650.0,0.33336903]
[1756148387551,0.19417055,112660.0,112650.0,0.15582798]
[1756148388175,0.17752529,112660.0,112650.0,0.33336903]
[1756148389039,0.17745769,112660.0,112650.0,0.33336903]
[1756148389252,0.17745769,112660.0,112650.0,0.15582798]
[1756148392265,0.17728916,112660.0,112650.0,0.15582798]
[1756148392809,0.17728916,112660.0,112650.0,0.33336903]
[1756148393014,0.17728916,112660.0,112650.0,0.15582798]
[1756148394227,0.19393719,112660.0,112650.0,0.15578798]
[1756148394430,1.05617147,112660.0,112650.0,0.00407798]
[1756148394642,1.05617147,112660.0,112650.0,0.00104798]
[1756148394900,1.40432548,112660.0,112650.0,0.00104798]
[1756148395113,1.43102448,112660.0,112650.0,0.00104798]
[1756148395725,1.43102448,112660.0,112650.0,4.798e-05]
[1756148396351,1.43202448,112660.0,112650.0,4.798e-05]
[1756148397185,6.30610748,112660.0,112650.0,4.798e-05]
[1756148398464,6.30592977,112660.0,112650.0,4.798e-05]
[1756148399111,6.30592977,112660.0,112650.0,0.00534798]
[1756148399320,6.45548977,112660.0,112650.0,4.798e-05]
[1756148400192,6.45548977,112660.0,112650.0,0.00321798]
[1756148400417,0.71917249,112660.0,112650.0,0.00534798]
[1756148400627,0.70253313,112660.0,112650.0,0.00534798]
[1756148400841,0.71915355,112660.0,112650.0,0.00534798]
[1756148401284,1.58138783,112660.0,112650.0,0.00534798]
[1756148401546,1.58121882,112660.0,112650.0,0.00321798]
[1756148401975,1.58121882,112660.0,112650.0,4.798e-05]
[1756148402194,6.45530182,112660.0,112650.0,4.798e-05]
[1756148404388,6.46136321,112660.0,112650.0,4.798e-05]
[1756148405363,6.31180321,112660.0,112650.0,4.798e-05]
[1756148405578,6.46032321,112660.0,112650.0,4.798e-05]
[1756148405800,6.46132321,112660.0,112650.0,4.798e-05]
[1756148406220,6.31080321,112660.0,112650.0,4.798e-05]
[1756148406657,6.30557278,112660.0,112650.0,4.798e-05]
[1756148406870,6.30557278,112660.0,112650.0,0.00321798]
[1756148407089,6.45509278,112660.0,112650.0,0.00534798]
[1756148407313,6.45509278,112660.0,112650.0,4.798e-05]
[1756148407528,6.45609278,112660.0,112650.0,4.798e-05]
[1756148408182,6.45609278,112660.0,112650.0,0.00321798]
[1756148408398,6.45609278,112660.0,112650.0,4.798e-05]
[1756148409274,6.44775121,112660.0,112650.0,4.798e-05]
[1756148409485,6.45605217,112660.0,112650.0,4.798e-05]
[1756148409756,5.59381749,112660.0,112650.0,0.00321798]
[1756148409965,6.45605177,112660.0,112650.0,4.798e-05]
[1756148410479,6.30653177,112660.0,112650.0,0.00534798]
[1756148410696,0.57021449,112660.0,112650.0,0.00534798]
[1756148410919,0.37973449,112660.0,112650.0,0.18288903]
[1756148411142,0.37143393,112660.0,112650.0,0.00534798]
[1756148411369,1.57366821,112660.0,112650.0,0.00534798]
[1756148411915,1.57266821,112660.0,112650.0,0.00534798]
[1756148412123,1.57266821,112660.0,112650.0,4.798e-05]
[1756148412342,6.45505468,112660.0,112650.0,4.798e-05]
[1756148412768,6.45505468,112660.0,112650.0,0.00321798]
[1756148412996,5.5918204,112660.0,112650.0,0.00534798]
[1756148413201,6.45406099,112660.0,112650.0,0.00534798]
[1756148413408,6.45506099,112660.0,112650.0,0.00534798]
[1756148413985,5.44330671,112660.0,112650.0,0.00534798]
[1756148414210,0.71043981,112660.0,112650.0,0.00534798]
[1756148415067,0.56091981,112660.0,112650.0,0.00534798]
[1756148415288,0.544312,112660.0,112650.0,0.18288903]
[1756148416887,0.027699,112660.0,112650.0,0.18288903]
[1756148417090,0.001,112660.0,112650.0,1.19464331]
[1756148417998,0.001,112660.0,112650.0,0.33240903]
[1756148419134,0.001,112660.0,112650.0,1.19464331]
[1756148419377,0.35389613,112670.0,112660.0,0.17752529]
[1756148419590,0.01389613,112670.0,112660.0,1.05720859]
[1756148419815,0.01389613,112670.0,112660.0,1.06250859]
[1756148420041,0.01389613,112670.0,112660.0,1.21198859]
[1756148420540,0.01389613,112670.0,112660.0,0.34975431]
[1756148420758,0.01389613,112670.0,112660.0,0.20027431]
[1756148420975,0.01389613,112670.0,112660.0,0.35075431]
[1756148421642,0.01389613,112670.0,112660.0,0.35175431]
[1756148422297,0.01389613,112670.0,112660.0,0.20227431]
[1756148422751,0.01389613,112670.0,112660.0,0.35175431]
[1756148422975,0.51749413,112680.0,112660.0,0.35175431]
[1756148423187,0.51749413,112680.0,112670.0,0.17750954]
[1756148423399,0.51749413,112680.0,112670.0,0.18280954]
[1756148423825,0.51749413,112680.0,112670.0,0.0053]
[1756148424055,0.51749413,112680.0,112670.0,0.00317]
[1756148424291,0.17750954,112670.0,112660.0,0.34762431]
[1756148424536,0.17750954,112670.0,112660.0,0.34975431]
[1756148425830,0.17750954,112670.0,112660.0,0.20027431]
[1756148426059,0.17750954,112670.0,112660.0,0.35075431]
[1756148426308,0.51749413,112680.0,112660.0,0.35175431]
[1756148426517,0.51749413,112680.0,112660.0,0.34858431]
[1756148426735,0.51749413,112680.0,112670.0,0.00313]
[1756148426963,0.51749413,112680.0,112670.0,0.00516]
[1756148427609,0.51849413,112680.0,112670.0,0.00516]
[1756148428272,0.51849413,112680.0,112670.0,0.00313]
[1756148429008,0.51749413,112680.0,112670.0,0.00313]
[1756148429246,0.51849413,112680.0,112670.0,0.00313]
[1756148430103,0.17750954,112670.0,112660.0,0.19810243]
[1756148430324,0.17750954,112670.0,112660.0,0.34957243]
[1756148430544,0.17750954,112670.0,112660.0,0.34957431]
[1756148430952,0.19140506,112670.0,112660.0,0.34957431]
[1756148431962,0.19140506,112670.0,112660.0,0.35057431]
[1756148432186,1.05363934,112670.0,112660.0,0.15044]
[1756148432394,0.34084506,112670.0,112660.0,0.002]
[1756148432613,1.54307934,112670.0,112660.0,0.002]
[1756148432822,1.52918382,112670.0,112660.0,0.002]
[1756148433032,1.55588182,112670.0,112660.0,0.002]
[1756148433901,6.42996482,112670.0,112660.0,0.002]
[1756148434293,6.44653369,112670.0,112660.0,0.002]
[1756148434718,6.50322131,112670.0,112660.0,0.002]
[1756148434962,6.5416883,112670.0,112660.0,0.002]
[1756148435177,6.45481829,112670.0,112660.0,0.002]
[1756148435393,6.45481829,112670.0,112660.0,0.001]
[1756148435658,0.17752529,112660.0,112650.0,4.798e-05]
[1756148435925,5.93869604,112660.0,112650.0,4.798e-05]
[1756148436603,5.95259476,112660.0,112650.0,4.798e-05]
[1756148436838,6.10199476,112660.0,112650.0,4.798e-05]
[1756148437053,6.10299476,112660.0,112650.0,4.798e-05]
[1756148437722,6.44299476,112660.0,112650.0,4.798e-05]
[1756148437942,6.29359476,112660.0,112650.0,4.798e-05]
[1756148438180,6.44299476,112660.0,112650.0,4.798e-05]
[1756148438397,6.44299984,112660.0,112650.0,4.798e-05]
[1756148438827,6.43471366,112660.0,112650.0,4.798e-05]
[1756148439047,6.44299808,112660.0,112650.0,4.798e-05]
[1756148439274,6.44499455,112660.0,112650.0,4.798e-05]
[1756148439767,6.44599455,112660.0,112650.0,4.798e-05]
[1756148439989,6.3834642,112660.0,112650.0,1e-08]
[1756148440213,6.30280694,112660.0,112650.0,1e-08]
[1756148440443,6.45220694,112660.0,112650.0,1e-08]
[1756148443039,6.47891294,112660.0,112650.0,1e-08]
[1756148444774,6.47885766,112660.0,112650.0,1e-08]
[1756148445414,6.47889766,112660.0,112650.0,1e-08]
[1756148445646,6.41632731,112660.0,112650.0,1e-08]
[1756148445881,6.56572731,112660.0,112650.0,1e-08]
[1756148446315,6.41632731,112660.0,112650.0,1e-08]
[1756148446577,6.66572731,112660.0,112650.0,1e-08]
[1756148446789,7.74540869,112660.0,112650.0,1e-08]
[1756148447043,7.59600869,112660.0,112650.0,1e-08]
[1756148447269,7.74540869,112660.0,112650.0,1e-08]
[1756148447509,6.88317441,112660.0,112650.0,1e-08]
[1756148447745,7.74540869,112660.0,112650.0,1e-08]
[1756148447949,7.74538513,112660.0,112650.0,1e-08]
[1756148448153,7.72885883,112660.0,112650.0,1e-08]
[1756148448438,7.74538159,112660.0,112650.0,1e-08]
[1756148448632,7.74537988,112660.0,112650.0,1e-08]
[1756148448801,7.59597988,112660.0,112650.0,1e-08]
[1756148449030,7.74537797,112660.0,112650.0,1e-08]
[1756148450137,7.50910832,112660.0,112650.0,1e-08]
[1756148450341,7.65850832,112660.0,112650.0,1e-08]
[1756148450739,6.79627404,112660.0,112650.0,1e-08]
[1756148451703,7.65850832,112660.0,112650.0,1e-08]
[1756148455639,7.67595734,112660.0,112650.0,1e-08]
[1756148455855,7.78680385,112660.0,112650.0,1e-08]
[1756148456103,6.94035299,112660.0,112650.0,1e-08]
[1756148456307,7.03398299,112660.0,112650.0,1e-08]
[1756148457416,7.02998299,112660.0,112650.0,1e-08]
[1756148457646,7.00200334,112660.0,112650.0,1e-08]
[1756148457860,7.03298784,112660.0,112650.0,1e-08]
[1756148458088,7.02998784,112660.0,112650.0,1e-08]
[1756148458305,7.03298784,112660.0,112650.0,1e-08]
[1756148458742,7.03299048,112660.0,112650.0,1e-08]
[1756148458977,7.03699048,112660.0,112650.0,1e-08]
[1756148459193,7.03299048,112660.0,112650.0,1e-08]
[1756148459375,7.03699048,112660.0,112650.0,1e-08]
[1756148459840,6.88759048,112660.0,112650.0,1e-08]
[1756148460051,7.03699048,112660.0,112650.0,1e-08]
[1756148460261,6.91156734,112660.0,112650.0,1e-08]
[1756148460441,7.06096734,112660.0,112650.0,1e-08]
[1756148460873,7.06097285,112660.0,112650.0,1e-08]
[1756148461361,0.76755681,112640.0,112630.0,1e-08]
[1756148461575,0.51757258,112630.0,112620.0,0.07110163]
[1756148461793,5.61180851,112630.0,112620.0,0.07306163]
[1756148462230,5.65242489,112630.0,112620.0,0.07306163]
[1756148462954,5.65242489,112630.0,112620.0,0.07506163]
[1756148463385,5.65242489,112630.0,112620.0,0.07810163]
[1756148464340,5.67151546,112630.0,112620.0,0.07810163]
[1756148465426,5.71066928,112630.0,112620.0,0.07810163]
[1756148465643,5.79956893,112630.0,112620.0,0.007]
[1756148466288,5.77479214,112630.0,112620.0,0.007]
[1756148466482,5.79965708,112630.0,112620.0,0.007]
[1756148466942,5.79965947,112630.0,112600.0,0.07110163]
[1756148467109,0.17760412,112610.0,112600.0,0.07110163]
[1756148467310,5.26571422,112610.0,112600.0,0.07306163]
[1756148467880,5.29242822,112610.0,112600.0,0.07306163]
[1756148468094,5.30633222,112610.0,112600.0,0.07306163]
[1756148468315,5.30633222,112610.0,112600.0,0.07310961]
[1756148469066,5.30633222,112610.0,112600.0,0.00704798]
[1756148469481,5.32387388,112610.0,112600.0,0.00704798]
[1756148469684,5.33216612,112610.0,112600.0,0.00704798]
[1756148469899,5.33216612,112610.0,112600.0,0.00904798]
[1756148471654,5.33216612,112610.0,112600.0,0.00600798]
[1756148471876,5.33216612,112610.0,112600.0,0.00904798]
[1756148472713,5.33216612,112610.0,112600.0,0.00704798]
[1756148473158,4.46989184,112610.0,112600.0,0.00704798]
[1756148473375,5.33212612,112610.0,112600.0,0.00504798]
[1756148473586,5.33416909,112610.0,112600.0,0.00400798]
[1756148474003,5.33213909,112610.0,112600.0,0.00704798]
[1756148474252,5.33213909,112610.0,112600.0,0.00604798]
[1756148474492,4.46990481,112610.0,112600.0,0.00604798]
[1756148474706,5.33213909,112610.0,112600.0,0.00704798]
[1756148474915,4.32054481,112610.0,112600.0,0.00704798]
[1756148475129,4.46990481,112610.0,112600.0,0.00704798]
[1756148475980,4.46991151,112610.0,112600.0,0.00704798]
[1756148476410,4.32055151,112610.0,112600.0,0.00704798]
[1756148476623,4.32055499,112610.0,112600.0,0.86928226]
[1756148476886,0.24223199,112610.0,112600.0,1.04690215]
[1756148477535,0.24223199,112610.0,112600.0,0.00704798]
[1756148477748,0.24223199,112610.0,112600.0,0.86828226]
[1756148477957,0.22832799,112610.0,112600.0,0.00704798]
[1756148478183,0.39159106,112610.0,112600.0,0.00704798]
[1756148478436,0.73159106,112610.0,112600.0,0.00704798]
[1756148478871,0.73159106,112610.0,112600.0,0.00300798]
[1756148479081,0.73362106,112610.0,112600.0,0.00300798]
[1756148479294,0.73362106,112610.0,112600.0,0.00500798]
[1756148479498,4.78523006,112610.0,112600.0,0.00500798]
[1756148479709,4.78320006,112610.0,112600.0,0.00500798]
[1756148480142,5.65069434,112610.0,112600.0,0.00204798]
[1756148480385,5.65691925,112610.0,112600.0,0.00204798]
[1756148480596,5.67604381,112610.0,112600.0,0.00304798]
[1756148481283,5.67604381,112610.0,112600.0,0.00204798]
[1756148481506,5.74921672,112610.0,112600.0,0.00204798]
[1756148481746,4.81380953,112610.0,112600.0,0.00204798]
[1756148481951,5.67604381,112610.0,112600.0,4.798e-05]
[1756148483490,5.72444647,112610.0,112600.0,4.798e-05]
[1756148483700,5.67604381,112610.0,112600.0,4.798e-05]
[1756148484088,5.72635247,112610.0,112600.0,4.798e-05]
[1756148484506,5.67604381,112610.0,112600.0,4.798e-05]
[1756148485577,5.65115381,112610.0,112600.0,4.798e-05]
[1756148485785,5.67706974,112610.0,112600.0,4.798e-05]
[1756148486615,5.67706858,112610.0,112600.0,4.798e-05]
[1756148486832,5.67606858,112610.0,112600.0,4.798e-05]
[1756148487049,5.52770858,112610.0,112600.0,4.798e-05]
[1756148487261,5.67706858,112610.0,112600.0,4.798e-05]
[1756148487679,5.66786985,112610.0,112600.0,4.798e-05]
[1756148487888,5.66405171,112610.0,112600.0,4.798e-05]
[1756148488103,5.52859705,112610.0,112600.0,4.798e-05]
[1756148488311,5.67795705,112610.0,112600.0,4.798e-05]
[1756148488847,5.52859575,112610.0,112600.0,4.798e-05]
[1756148489061,5.67795575,112610.0,112600.0,4.798e-05]
[1756148490846,5.70445603,112610.0,112600.0,4.798e-05]
[1756148492053,5.70445724,112610.0,112600.0,4.798e-05]
[1756148492679,5.55509724,112610.0,112600.0,4.798e-05]
[1756148493029,5.70441724,112610.0,112600.0,4.798e-05]
[1756148493219,5.68529268,112610.0,112600.0,4.798e-05]
[1756148494682,5.53597225,112610.0,112600.0,4.798e-05]
[1756148494885,5.68533225,112610.0,112600.0,4.798e-05]
[1756148495093,5.53597586,112610.0,112600.0,4.798e-05]
[1756148495294,5.68529833,112610.0,112600.0,4.798e-05]
[1756148496622,5.77319488,112610.0,112600.0,4.798e-05]
[1756148497249,5.75405686,112610.0,112600.0,4.798e-05]
[1756148497477,5.77319376,112610.0,112600.0,4.798e-05]
[1756148498317,5.75658079,112610.0,112600.0,4.798e-05]
[1756148498517,5.77319206,112610.0,112600.0,4.798e-05]
[1756148499129,5.70443353,112610.0,112600.0,4.798e-05]
[1756148500129,5.70443353,112610.0,112590.0,0.02408818]
[1756148500130,0.51761989,112600.0,112590.0,0.02408818]
[1756148500340,6.53398253,112600.0,112590.0,0.02408818]
[1756148500743,6.56070053,112600.0,112590.0,0.02408818]
[1756148501800,6.41138053,112600.0,112590.0,0.02508818]
[1756148502136,6.56070053,112600.0,112590.0,0.02508818]
[1756148502530,6.56070053,112600.0,112590.0,0.02408818]
[1756148503286,6.56170053,112600.0,112590.0,0.02408818]
[1756148504092,4.68791197,112600.0,112590.0,0.02408818]
[1756148504304,6.56170053,112600.0,112590.0,0.02408818]
[1756148504732,6.5388594,112600.0,112590.0,0.02408818]
[1756148504966,6.56668564,112600.0,112590.0,0.02408818]
[1756148505148,6.56568564,112600.0,112590.0,0.02408818]
[1756148505344,6.56668564,112600.0,112590.0,0.02408818]
[1756148505575,6.56668564,112600.0,112590.0,0.02608818]
[1756148505789,6.56668564,112600.0,112590.0,0.02408818]
[1756148505790,5.70445083,112600.0,112590.0,0.02408818]
[1756148506572,6.56668511,112600.0,112590.0,0.02408818]
[1756148507077,6.41736511,112600.0,112590.0,0.02408818]
[1756148507186,6.56668511,112600.0,112590.0,0.02408818]
[1756148507890,6.41736511,112600.0,112590.0,0.02408818]
[1756148508104,6.56669159,112600.0,112590.0,0.02408818]
[1756148509196,6.57979172,112600.0,112590.0,0.02408818]
[1756148509413,6.62819438,112600.0,112590.0,0.02408818]
[1756148509629,0.17765144,112580.0,112570.0,0.0002]
[1756148509837,0.17765144,112580.0,112570.0,0.00268021]
[1756148509838,5.26767885,112580.0,112570.0,0.00268021]
[1756148510057,5.11835885,112580.0,112570.0,0.00268021]
[1756148510272,5.26767885,112580.0,112570.0,0.00268021]
[1756148510482,5.3083072,112580.0,112570.0,0.00268021]
[1756148511128,5.1589872,112580.0,112570.0,0.00268021]
[1756148511349,4.44607737,112580.0,112570.0,0.00468021]
[1756148511559,5.30831165,112580.0,112570.0,0.00468021]
[1756148512321,5.30831165,112580.0,112570.0,0.00668021]
[1756148512926,5.30831165,112580.0,112570.0,0.00468021]
[1756148513946,5.2924433,112580.0,112570.0,0.00770021]
[1756148514186,5.2924433,112580.0,112570.0,0.00570021]
[1756148514610,5.2924451,112580.0,112570.0,0.00268021]
[1756148514997,5.2924451,112580.0,112570.0,0.00368021]
[1756148515247,5.2944351,112580.0,112570.0,0.00368021]
[1756148515461,5.29443426,112580.0,112570.0,0.00268021]
[1756148515675,5.29443426,112580.0,112570.0,0.00368021]